{"text_format":"3","workbook":"xlsx","n_sheets":3,"sheets":["Planification","Saisie de données","Recherche de nom"],"not_rendered":{"defined_names":5},"read":"whole","date_system":"1900"}

{"sheet":"Planification","index":0,"n_rows":23,"n_cols":9,"rows_kept":23,"merged":[[1,1,2,3]]}
[]
[null,"PROGRAMME QUOTIDIEN",{"$nulls":4},"Pour la semaine du ","Afficher le programme pour : "]
[{"$nulls":5},{"$f":"WEEKDAY(SemaineDu,1)","v":3},"2012-07-03","Maurice"]
[null,null,{"$f":"$F$3=COLUMN(A$1)","v":false},{"$f":"$F$3=COLUMN(B$1)","v":false},true,false,false,false,false]
[null,null,{"$f":"COLUMN(A$1)-MATCH(TRUE,$C$4:$I$4,0)+SemaineDu+1","v":"2012-07-02"},"2012-07-03","2012-07-04","2012-07-05","2012-07-06","2012-07-07","2012-07-08"]
[null,"TIME","LUNDI","MARDI","MERCREDI","JEUDI","VENDREDI","SAMEDI","DIMANCHE"]
[null,"06:00:00",{"$f":"IFERROR(INDEX(tblDonnées[],MATCH(C$5+$B7&AfficherNom,tblDonnées[DATE et HEURE]&tblDonnées[QUI],0),3),\"\")","v":""},{"$f":"IFERROR(INDEX(tblDonnées[],MATCH(D$5+$B7&AfficherNom,tblDonnées[DATE et HEURE]&tblDonnées[QUI],0),3),\"\")","v":""},{"$f":"IFERROR(INDEX(tblDonnées[],MATCH(E$5+$B7&AfficherNom,tblDonnées[DATE et HEURE]&tblDonnées[QUI],0),3),\"\")","v":""},{"$f":"IFERROR(INDEX(tblDonnées[],MATCH(F$5+$B7&AfficherNom,tblDonnées[DATE et HEURE]&tblDonnées[QUI],0),3),\"\")","v":""},{"$f":"IFERROR(INDEX(tblDonnées[],MATCH(G$5+$B7&AfficherNom,tblDonnées[DATE et HEURE]&tblDonnées[QUI],0),3),\"\")","v":""},{"$f":"IFERROR(INDEX(tblDonnées[],MATCH(H$5+$B7&AfficherNom,tblDonnées[DATE et HEURE]&tblDonnées[QUI],0),3),\"\")","v":""},{"$f":"IFERROR(INDEX(tblDonnées[],MATCH(I$5+$B7&AfficherNom,tblDonnées[DATE et HEURE]&tblDonnées[QUI],0),3),\"\")","v":""}]
[null,"07:00:00",{"$f":"IFERROR(INDEX(tblDonnées[],MATCH(C$5+$B8&AfficherNom,tblDonnées[DATE et HEURE]&tblDonnées[QUI],0),3),\"\")","v":""},{"$f":"IFERROR(INDEX(tblDonnées[],MATCH(D$5+$B8&AfficherNom,tblDonnées[DATE et HEURE]&tblDonnées[QUI],0),3),\"\")","v":""},{"$f":"IFERROR(INDEX(tblDonnées[],MATCH(E$5+$B8&AfficherNom,tblDonnées[DATE et HEURE]&tblDonnées[QUI],0),3),\"\")","v":""},{"$f":"IFERROR(INDEX(tblDonnées[],MATCH(F$5+$B8&AfficherNom,tblDonnées[DATE et HEURE]&tblDonnées[QUI],0),3),\"\")","v":""},{"$f":"IFERROR(INDEX(tblDonnées[],MATCH(G$5+$B8&AfficherNom,tblDonnées[DATE et HEURE]&tblDonnées[QUI],0),3),\"\")","v":""},{"$f":"IFERROR(INDEX(tblDonnées[],MATCH(H$5+$B8&AfficherNom,tblDonnées[DATE et HEURE]&tblDonnées[QUI],0),3),\"\")","v":""},{"$f":"IFERROR(INDEX(tblDonnées[],MATCH(I$5+$B8&AfficherNom,tblDonnées[DATE et HEURE]&tblDonnées[QUI],0),3),\"\")","v":""}]
[null,"08:00:00",{"$f":"IFERROR(INDEX(tblDonnées[],MATCH(C$5+$B9&AfficherNom,tblDonnées[DATE et HEURE]&tblDonnées[QUI],0),3),\"\")","v":""},{"$f":"IFERROR(INDEX(tblDonnées[],MATCH(D$5+$B9&AfficherNom,tblDonnées[DATE et HEURE]&tblDonnées[QUI],0),3),\"\")","v":""},{"$f":"IFERROR(INDEX(tblDonnées[],MATCH(E$5+$B9&AfficherNom,tblDonnées[DATE et HEURE]&tblDonnées[QUI],0),3),\"\")","v":""},{"$f":"IFERROR(INDEX(tblDonnées[],MATCH(F$5+$B9&AfficherNom,tblDonnées[DATE et HEURE]&tblDonnées[QUI],0),3),\"\")","v":""},{"$f":"IFERROR(INDEX(tblDonnées[],MATCH(G$5+$B9&AfficherNom,tblDonnées[DATE et HEURE]&tblDonnées[QUI],0),3),\"\")","v":""},{"$f":"IFERROR(INDEX(tblDonnées[],MATCH(H$5+$B9&AfficherNom,tblDonnées[DATE et HEURE]&tblDonnées[QUI],0),3),\"\")","v":""},{"$f":"IFERROR(INDEX(tblDonnées[],MATCH(I$5+$B9&AfficherNom,tblDonnées[DATE et HEURE]&tblDonnées[QUI],0),3),\"\")","v":""}]
[null,"09:00:00",{"$f":"IFERROR(INDEX(tblDonnées[],MATCH(C$5+$B10&AfficherNom,tblDonnées[DATE et HEURE]&tblDonnées[QUI],0),3),\"\")","v":""},{"$f":"IFERROR(INDEX(tblDonnées[],MATCH(D$5+$B10&AfficherNom,tblDonnées[DATE et HEURE]&tblDonnées[QUI],0),3),\"\")","v":""},{"$f":"IFERROR(INDEX(tblDonnées[],MATCH(E$5+$B10&AfficherNom,tblDonnées[DATE et HEURE]&tblDonnées[QUI],0),3),\"\")","v":""},{"$f":"IFERROR(INDEX(tblDonnées[],MATCH(F$5+$B10&AfficherNom,tblDonnées[DATE et HEURE]&tblDonnées[QUI],0),3),\"\")","v":""},{"$f":"IFERROR(INDEX(tblDonnées[],MATCH(G$5+$B10&AfficherNom,tblDonnées[DATE et HEURE]&tblDonnées[QUI],0),3),\"\")","v":""},{"$f":"IFERROR(INDEX(tblDonnées[],MATCH(H$5+$B10&AfficherNom,tblDonnées[DATE et HEURE]&tblDonnées[QUI],0),3),\"\")","v":""},{"$f":"IFERROR(INDEX(tblDonnées[],MATCH(I$5+$B10&AfficherNom,tblDonnées[DATE et HEURE]&tblDonnées[QUI],0),3),\"\")","v":""}]
[null,"10:00:00",{"$f":"IFERROR(INDEX(tblDonnées[],MATCH(C$5+$B11&AfficherNom,tblDonnées[DATE et HEURE]&tblDonnées[QUI],0),3),\"\")","v":""},{"$f":"IFERROR(INDEX(tblDonnées[],MATCH(D$5+$B11&AfficherNom,tblDonnées[DATE et HEURE]&tblDonnées[QUI],0),3),\"\")","v":""},{"$f":"IFERROR(INDEX(tblDonnées[],MATCH(E$5+$B11&AfficherNom,tblDonnées[DATE et HEURE]&tblDonnées[QUI],0),3),\"\")","v":"Défilé en ville"},{"$f":"IFERROR(INDEX(tblDonnées[],MATCH(F$5+$B11&AfficherNom,tblDonnées[DATE et HEURE]&tblDonnées[QUI],0),3),\"\")","v":""},{"$f":"IFERROR(INDEX(tblDonnées[],MATCH(G$5+$B11&AfficherNom,tblDonnées[DATE et HEURE]&tblDonnées[QUI],0),3),\"\")","v":""},{"$f":"IFERROR(INDEX(tblDonnées[],MATCH(H$5+$B11&AfficherNom,tblDonnées[DATE et HEURE]&tblDonnées[QUI],0),3),\"\")","v":""},{"$f":"IFERROR(INDEX(tblDonnées[],MATCH(I$5+$B11&AfficherNom,tblDonnées[DATE et HEURE]&tblDonnées[QUI],0),3),\"\")","v":""}]
[null,"11:00:00",{"$f":"IFERROR(INDEX(tblDonnées[],MATCH(C$5+$B12&AfficherNom,tblDonnées[DATE et HEURE]&tblDonnées[QUI],0),3),\"\")","v":""},{"$f":"IFERROR(INDEX(tblDonnées[],MATCH(D$5+$B12&AfficherNom,tblDonnées[DATE et HEURE]&tblDonnées[QUI],0),3),\"\")","v":""},{"$f":"IFERROR(INDEX(tblDonnées[],MATCH(E$5+$B12&AfficherNom,tblDonnées[DATE et HEURE]&tblDonnées[QUI],0),3),\"\")","v":""},{"$f":"IFERROR(INDEX(tblDonnées[],MATCH(F$5+$B12&AfficherNom,tblDonnées[DATE et HEURE]&tblDonnées[QUI],0),3),\"\")","v":""},{"$f":"IFERROR(INDEX(tblDonnées[],MATCH(G$5+$B12&AfficherNom,tblDonnées[DATE et HEURE]&tblDonnées[QUI],0),3),\"\")","v":"Barbecue en famille"},{"$f":"IFERROR(INDEX(tblDonnées[],MATCH(H$5+$B12&AfficherNom,tblDonnées[DATE et HEURE]&tblDonnées[QUI],0),3),\"\")","v":""},{"$f":"IFERROR(INDEX(tblDonnées[],MATCH(I$5+$B12&AfficherNom,tblDonnées[DATE et HEURE]&tblDonnées[QUI],0),3),\"\")","v":""}]
[null,"12:00:00",{"$f":"IFERROR(INDEX(tblDonnées[],MATCH(C$5+$B13&AfficherNom,tblDonnées[DATE et HEURE]&tblDonnées[QUI],0),3),\"\")","v":""},{"$f":"IFERROR(INDEX(tblDonnées[],MATCH(D$5+$B13&AfficherNom,tblDonnées[DATE et HEURE]&tblDonnées[QUI],0),3),\"\")","v":""},{"$f":"IFERROR(INDEX(tblDonnées[],MATCH(E$5+$B13&AfficherNom,tblDonnées[DATE et HEURE]&tblDonnées[QUI],0),3),\"\")","v":""},{"$f":"IFERROR(INDEX(tblDonnées[],MATCH(F$5+$B13&AfficherNom,tblDonnées[DATE et HEURE]&tblDonnées[QUI],0),3),\"\")","v":""},{"$f":"IFERROR(INDEX(tblDonnées[],MATCH(G$5+$B13&AfficherNom,tblDonnées[DATE et HEURE]&tblDonnées[QUI],0),3),\"\")","v":""},{"$f":"IFERROR(INDEX(tblDonnées[],MATCH(H$5+$B13&AfficherNom,tblDonnées[DATE et HEURE]&tblDonnées[QUI],0),3),\"\")","v":""},{"$f":"IFERROR(INDEX(tblDonnées[],MATCH(I$5+$B13&AfficherNom,tblDonnées[DATE et HEURE]&tblDonnées[QUI],0),3),\"\")","v":""}]
[null,"13:00:00",{"$f":"IFERROR(INDEX(tblDonnées[],MATCH(C$5+$B14&AfficherNom,tblDonnées[DATE et HEURE]&tblDonnées[QUI],0),3),\"\")","v":""},{"$f":"IFERROR(INDEX(tblDonnées[],MATCH(D$5+$B14&AfficherNom,tblDonnées[DATE et HEURE]&tblDonnées[QUI],0),3),\"\")","v":""},{"$f":"IFERROR(INDEX(tblDonnées[],MATCH(E$5+$B14&AfficherNom,tblDonnées[DATE et HEURE]&tblDonnées[QUI],0),3),\"\")","v":""},{"$f":"IFERROR(INDEX(tblDonnées[],MATCH(F$5+$B14&AfficherNom,tblDonnées[DATE et HEURE]&tblDonnées[QUI],0),3),\"\")","v":""},{"$f":"IFERROR(INDEX(tblDonnées[],MATCH(G$5+$B14&AfficherNom,tblDonnées[DATE et HEURE]&tblDonnées[QUI],0),3),\"\")","v":""},{"$f":"IFERROR(INDEX(tblDonnées[],MATCH(H$5+$B14&AfficherNom,tblDonnées[DATE et HEURE]&tblDonnées[QUI],0),3),\"\")","v":""},{"$f":"IFERROR(INDEX(tblDonnées[],MATCH(I$5+$B14&AfficherNom,tblDonnées[DATE et HEURE]&tblDonnées[QUI],0),3),\"\")","v":""}]
[null,"14:00:00",{"$f":"IFERROR(INDEX(tblDonnées[],MATCH(C$5+$B15&AfficherNom,tblDonnées[DATE et HEURE]&tblDonnées[QUI],0),3),\"\")","v":""},{"$f":"IFERROR(INDEX(tblDonnées[],MATCH(D$5+$B15&AfficherNom,tblDonnées[DATE et HEURE]&tblDonnées[QUI],0),3),\"\")","v":""},{"$f":"IFERROR(INDEX(tblDonnées[],MATCH(E$5+$B15&AfficherNom,tblDonnées[DATE et HEURE]&tblDonnées[QUI],0),3),\"\")","v":""},{"$f":"IFERROR(INDEX(tblDonnées[],MATCH(F$5+$B15&AfficherNom,tblDonnées[DATE et HEURE]&tblDonnées[QUI],0),3),\"\")","v":""},{"$f":"IFERROR(INDEX(tblDonnées[],MATCH(G$5+$B15&AfficherNom,tblDonnées[DATE et HEURE]&tblDonnées[QUI],0),3),\"\")","v":""},{"$f":"IFERROR(INDEX(tblDonnées[],MATCH(H$5+$B15&AfficherNom,tblDonnées[DATE et HEURE]&tblDonnées[QUI],0),3),\"\")","v":""},{"$f":"IFERROR(INDEX(tblDonnées[],MATCH(I$5+$B15&AfficherNom,tblDonnées[DATE et HEURE]&tblDonnées[QUI],0),3),\"\")","v":""}]
[null,"15:00:00",{"$f":"IFERROR(INDEX(tblDonnées[],MATCH(C$5+$B16&AfficherNom,tblDonnées[DATE et HEURE]&tblDonnées[QUI],0),3),\"\")","v":""},{"$f":"IFERROR(INDEX(tblDonnées[],MATCH(D$5+$B16&AfficherNom,tblDonnées[DATE et HEURE]&tblDonnées[QUI],0),3),\"\")","v":""},{"$f":"IFERROR(INDEX(tblDonnées[],MATCH(E$5+$B16&AfficherNom,tblDonnées[DATE et HEURE]&tblDonnées[QUI],0),3),\"\")","v":""},{"$f":"IFERROR(INDEX(tblDonnées[],MATCH(F$5+$B16&AfficherNom,tblDonnées[DATE et HEURE]&tblDonnées[QUI],0),3),\"\")","v":""},{"$f":"IFERROR(INDEX(tblDonnées[],MATCH(G$5+$B16&AfficherNom,tblDonnées[DATE et HEURE]&tblDonnées[QUI],0),3),\"\")","v":""},{"$f":"IFERROR(INDEX(tblDonnées[],MATCH(H$5+$B16&AfficherNom,tblDonnées[DATE et HEURE]&tblDonnées[QUI],0),3),\"\")","v":""},{"$f":"IFERROR(INDEX(tblDonnées[],MATCH(I$5+$B16&AfficherNom,tblDonnées[DATE et HEURE]&tblDonnées[QUI],0),3),\"\")","v":""}]
[null,"16:00:00",{"$f":"IFERROR(INDEX(tblDonnées[],MATCH(C$5+$B17&AfficherNom,tblDonnées[DATE et HEURE]&tblDonnées[QUI],0),3),\"\")","v":""},{"$f":"IFERROR(INDEX(tblDonnées[],MATCH(D$5+$B17&AfficherNom,tblDonnées[DATE et HEURE]&tblDonnées[QUI],0),3),\"\")","v":"Départ pour le chalet"},{"$f":"IFERROR(INDEX(tblDonnées[],MATCH(E$5+$B17&AfficherNom,tblDonnées[DATE et HEURE]&tblDonnées[QUI],0),3),\"\")","v":""},{"$f":"IFERROR(INDEX(tblDonnées[],MATCH(F$5+$B17&AfficherNom,tblDonnées[DATE et HEURE]&tblDonnées[QUI],0),3),\"\")","v":""},{"$f":"IFERROR(INDEX(tblDonnées[],MATCH(G$5+$B17&AfficherNom,tblDonnées[DATE et HEURE]&tblDonnées[QUI],0),3),\"\")","v":""},{"$f":"IFERROR(INDEX(tblDonnées[],MATCH(H$5+$B17&AfficherNom,tblDonnées[DATE et HEURE]&tblDonnées[QUI],0),3),\"\")","v":""},{"$f":"IFERROR(INDEX(tblDonnées[],MATCH(I$5+$B17&AfficherNom,tblDonnées[DATE et HEURE]&tblDonnées[QUI],0),3),\"\")","v":""}]
[null,"17:00:00",{"$f":"IFERROR(INDEX(tblDonnées[],MATCH(C$5+$B18&AfficherNom,tblDonnées[DATE et HEURE]&tblDonnées[QUI],0),3),\"\")","v":""},{"$f":"IFERROR(INDEX(tblDonnées[],MATCH(D$5+$B18&AfficherNom,tblDonnées[DATE et HEURE]&tblDonnées[QUI],0),3),\"\")","v":""},{"$f":"IFERROR(INDEX(tblDonnées[],MATCH(E$5+$B18&AfficherNom,tblDonnées[DATE et HEURE]&tblDonnées[QUI],0),3),\"\")","v":""},{"$f":"IFERROR(INDEX(tblDonnées[],MATCH(F$5+$B18&AfficherNom,tblDonnées[DATE et HEURE]&tblDonnées[QUI],0),3),\"\")","v":""},{"$f":"IFERROR(INDEX(tblDonnées[],MATCH(G$5+$B18&AfficherNom,tblDonnées[DATE et HEURE]&tblDonnées[QUI],0),3),\"\")","v":""},{"$f":"IFERROR(INDEX(tblDonnées[],MATCH(H$5+$B18&AfficherNom,tblDonnées[DATE et HEURE]&tblDonnées[QUI],0),3),\"\")","v":""},{"$f":"IFERROR(INDEX(tblDonnées[],MATCH(I$5+$B18&AfficherNom,tblDonnées[DATE et HEURE]&tblDonnées[QUI],0),3),\"\")","v":"Retour à la maison"}]
[null,"18:00:00",{"$f":"IFERROR(INDEX(tblDonnées[],MATCH(C$5+$B19&AfficherNom,tblDonnées[DATE et HEURE]&tblDonnées[QUI],0),3),\"\")","v":"Prendre médicament"},{"$f":"IFERROR(INDEX(tblDonnées[],MATCH(D$5+$B19&AfficherNom,tblDonnées[DATE et HEURE]&tblDonnées[QUI],0),3),\"\")","v":""},{"$f":"IFERROR(INDEX(tblDonnées[],MATCH(E$5+$B19&AfficherNom,tblDonnées[DATE et HEURE]&tblDonnées[QUI],0),3),\"\")","v":""},{"$f":"IFERROR(INDEX(tblDonnées[],MATCH(F$5+$B19&AfficherNom,tblDonnées[DATE et HEURE]&tblDonnées[QUI],0),3),\"\")","v":""},{"$f":"IFERROR(INDEX(tblDonnées[],MATCH(G$5+$B19&AfficherNom,tblDonnées[DATE et HEURE]&tblDonnées[QUI],0),3),\"\")","v":""},{"$f":"IFERROR(INDEX(tblDonnées[],MATCH(H$5+$B19&AfficherNom,tblDonnées[DATE et HEURE]&tblDonnées[QUI],0),3),\"\")","v":""},{"$f":"IFERROR(INDEX(tblDonnées[],MATCH(I$5+$B19&AfficherNom,tblDonnées[DATE et HEURE]&tblDonnées[QUI],0),3),\"\")","v":""}]
[null,"19:00:00",{"$f":"IFERROR(INDEX(tblDonnées[],MATCH(C$5+$B20&AfficherNom,tblDonnées[DATE et HEURE]&tblDonnées[QUI],0),3),\"\")","v":""},{"$f":"IFERROR(INDEX(tblDonnées[],MATCH(D$5+$B20&AfficherNom,tblDonnées[DATE et HEURE]&tblDonnées[QUI],0),3),\"\")","v":""},{"$f":"IFERROR(INDEX(tblDonnées[],MATCH(E$5+$B20&AfficherNom,tblDonnées[DATE et HEURE]&tblDonnées[QUI],0),3),\"\")","v":""},{"$f":"IFERROR(INDEX(tblDonnées[],MATCH(F$5+$B20&AfficherNom,tblDonnées[DATE et HEURE]&tblDonnées[QUI],0),3),\"\")","v":""},{"$f":"IFERROR(INDEX(tblDonnées[],MATCH(G$5+$B20&AfficherNom,tblDonnées[DATE et HEURE]&tblDonnées[QUI],0),3),\"\")","v":""},{"$f":"IFERROR(INDEX(tblDonnées[],MATCH(H$5+$B20&AfficherNom,tblDonnées[DATE et HEURE]&tblDonnées[QUI],0),3),\"\")","v":""},{"$f":"IFERROR(INDEX(tblDonnées[],MATCH(I$5+$B20&AfficherNom,tblDonnées[DATE et HEURE]&tblDonnées[QUI],0),3),\"\")","v":""}]
[null,"20:00:00",{"$f":"IFERROR(INDEX(tblDonnées[],MATCH(C$5+$B21&AfficherNom,tblDonnées[DATE et HEURE]&tblDonnées[QUI],0),3),\"\")","v":"Film en famille"},{"$f":"IFERROR(INDEX(tblDonnées[],MATCH(D$5+$B21&AfficherNom,tblDonnées[DATE et HEURE]&tblDonnées[QUI],0),3),\"\")","v":""},{"$f":"IFERROR(INDEX(tblDonnées[],MATCH(E$5+$B21&AfficherNom,tblDonnées[DATE et HEURE]&tblDonnées[QUI],0),3),\"\")","v":""},{"$f":"IFERROR(INDEX(tblDonnées[],MATCH(F$5+$B21&AfficherNom,tblDonnées[DATE et HEURE]&tblDonnées[QUI],0),3),\"\")","v":"Feu d’artifice"},{"$f":"IFERROR(INDEX(tblDonnées[],MATCH(G$5+$B21&AfficherNom,tblDonnées[DATE et HEURE]&tblDonnées[QUI],0),3),\"\")","v":""},{"$f":"IFERROR(INDEX(tblDonnées[],MATCH(H$5+$B21&AfficherNom,tblDonnées[DATE et HEURE]&tblDonnées[QUI],0),3),\"\")","v":""},{"$f":"IFERROR(INDEX(tblDonnées[],MATCH(I$5+$B21&AfficherNom,tblDonnées[DATE et HEURE]&tblDonnées[QUI],0),3),\"\")","v":""}]
[null,"21:00:00",{"$f":"IFERROR(INDEX(tblDonnées[],MATCH(C$5+$B22&AfficherNom,tblDonnées[DATE et HEURE]&tblDonnées[QUI],0),3),\"\")","v":""},{"$f":"IFERROR(INDEX(tblDonnées[],MATCH(D$5+$B22&AfficherNom,tblDonnées[DATE et HEURE]&tblDonnées[QUI],0),3),\"\")","v":""},{"$f":"IFERROR(INDEX(tblDonnées[],MATCH(E$5+$B22&AfficherNom,tblDonnées[DATE et HEURE]&tblDonnées[QUI],0),3),\"\")","v":""},{"$f":"IFERROR(INDEX(tblDonnées[],MATCH(F$5+$B22&AfficherNom,tblDonnées[DATE et HEURE]&tblDonnées[QUI],0),3),\"\")","v":""},{"$f":"IFERROR(INDEX(tblDonnées[],MATCH(G$5+$B22&AfficherNom,tblDonnées[DATE et HEURE]&tblDonnées[QUI],0),3),\"\")","v":""},{"$f":"IFERROR(INDEX(tblDonnées[],MATCH(H$5+$B22&AfficherNom,tblDonnées[DATE et HEURE]&tblDonnées[QUI],0),3),\"\")","v":""},{"$f":"IFERROR(INDEX(tblDonnées[],MATCH(I$5+$B22&AfficherNom,tblDonnées[DATE et HEURE]&tblDonnées[QUI],0),3),\"\")","v":""}]
[null,"22:00:00",{"$f":"IFERROR(INDEX(tblDonnées[],MATCH(C$5+$B23&AfficherNom,tblDonnées[DATE et HEURE]&tblDonnées[QUI],0),3),\"\")","v":""},{"$f":"IFERROR(INDEX(tblDonnées[],MATCH(D$5+$B23&AfficherNom,tblDonnées[DATE et HEURE]&tblDonnées[QUI],0),3),\"\")","v":""},{"$f":"IFERROR(INDEX(tblDonnées[],MATCH(E$5+$B23&AfficherNom,tblDonnées[DATE et HEURE]&tblDonnées[QUI],0),3),\"\")","v":""},{"$f":"IFERROR(INDEX(tblDonnées[],MATCH(F$5+$B23&AfficherNom,tblDonnées[DATE et HEURE]&tblDonnées[QUI],0),3),\"\")","v":""},{"$f":"IFERROR(INDEX(tblDonnées[],MATCH(G$5+$B23&AfficherNom,tblDonnées[DATE et HEURE]&tblDonnées[QUI],0),3),\"\")","v":""},{"$f":"IFERROR(INDEX(tblDonnées[],MATCH(H$5+$B23&AfficherNom,tblDonnées[DATE et HEURE]&tblDonnées[QUI],0),3),\"\")","v":""},{"$f":"IFERROR(INDEX(tblDonnées[],MATCH(I$5+$B23&AfficherNom,tblDonnées[DATE et HEURE]&tblDonnées[QUI],0),3),\"\")","v":""}]

{"sheet":"Saisie de données","index":1,"n_rows":14,"n_cols":4,"rows_kept":14}
[null,"SAISIE DE DONNÉES"]
[]
[null,"DATE et HEURE","QUI","TÂCHE"]
[null,"2012-07-02T08:00:00","Anna","Rendez-vous médical"]
[null,"2012-07-02T18:00:00","Maurice","Prendre médicament"]
[null,"2012-07-02T18:30:00","Maurice","Dîner avec Pat"]
[null,"2012-07-02T20:00:00","Maurice","Film en famille"]
[null,"2012-07-03T16:00:00","Maurice","Départ pour le chalet"]
[null,"2012-07-04T10:00:00","Maurice","Défilé en ville"]
[null,"2012-07-05T20:00:00","Maurice","Feu d’artifice"]
[null,"2012-07-06T11:00:00","Maurice","Barbecue en famille"]
[null,"2012-07-07","Maurice","Pique-nique entre amis"]
[null,"2012-07-08T17:00:00","Maurice","Retour à la maison"]
[null,"2012-07-02T10:00:00","Anna","Cours de piano"]

{"sheet":"Recherche de nom","index":2,"n_rows":132,"n_cols":2,"rows_kept":132,"hidden":true,"merged":[[0,0,0,1]]}
["Cette feuille contient les noms de la liste de menu déroulant de la cellule H3 de la feuille Planification. Toute modification apportée à cette feuille peut entraîner une erreur."]
["NOM UNIQUE","NUMÉRO DE LIGNE"]
[{"$f":"IFERROR(INDEX(ChampQui,MATCH(0,COUNTIF($A$2:A2,ChampQui),0)),\"\")","v":"Anna"},{"$f":"IF(A3=\"\",\"\",ROW())","v":3}]
[{"$f":"IFERROR(INDEX(ChampQui,MATCH(0,COUNTIF($A$2:A3,ChampQui),0)),\"\")","v":"Maurice"},{"$f":"IF(A4=\"\",\"\",ROW())","v":4}]
[{"$f":"IFERROR(INDEX(ChampQui,MATCH(0,COUNTIF($A$2:A4,ChampQui),0)),\"\")","v":""},""]
[{"$f":"IFERROR(INDEX(ChampQui,MATCH(0,COUNTIF($A$2:A5,ChampQui),0)),\"\")","v":""},""]
[{"$f":"IFERROR(INDEX(ChampQui,MATCH(0,COUNTIF($A$2:A6,ChampQui),0)),\"\")","v":""},""]
[{"$f":"IFERROR(INDEX(ChampQui,MATCH(0,COUNTIF($A$2:A7,ChampQui),0)),\"\")","v":""},""]
[{"$f":"IFERROR(INDEX(ChampQui,MATCH(0,COUNTIF($A$2:A8,ChampQui),0)),\"\")","v":""},""]
[{"$f":"IFERROR(INDEX(ChampQui,MATCH(0,COUNTIF($A$2:A9,ChampQui),0)),\"\")","v":""},""]
[{"$f":"IFERROR(INDEX(ChampQui,MATCH(0,COUNTIF($A$2:A10,ChampQui),0)),\"\")","v":""},""]
[{"$f":"IFERROR(INDEX(ChampQui,MATCH(0,COUNTIF($A$2:A11,ChampQui),0)),\"\")","v":""},""]
[{"$f":"IFERROR(INDEX(ChampQui,MATCH(0,COUNTIF($A$2:A12,ChampQui),0)),\"\")","v":""},""]
[{"$f":"IFERROR(INDEX(ChampQui,MATCH(0,COUNTIF($A$2:A13,ChampQui),0)),\"\")","v":""},""]
[{"$f":"IFERROR(INDEX(ChampQui,MATCH(0,COUNTIF($A$2:A14,ChampQui),0)),\"\")","v":""},""]
[{"$f":"IFERROR(INDEX(ChampQui,MATCH(0,COUNTIF($A$2:A15,ChampQui),0)),\"\")","v":""},""]
[{"$f":"IFERROR(INDEX(ChampQui,MATCH(0,COUNTIF($A$2:A16,ChampQui),0)),\"\")","v":""},""]
[{"$f":"IFERROR(INDEX(ChampQui,MATCH(0,COUNTIF($A$2:A17,ChampQui),0)),\"\")","v":""},""]
[{"$f":"IFERROR(INDEX(ChampQui,MATCH(0,COUNTIF($A$2:A18,ChampQui),0)),\"\")","v":""},""]
[{"$f":"IFERROR(INDEX(ChampQui,MATCH(0,COUNTIF($A$2:A19,ChampQui),0)),\"\")","v":""},""]
[{"$f":"IFERROR(INDEX(ChampQui,MATCH(0,COUNTIF($A$2:A20,ChampQui),0)),\"\")","v":""},""]
[{"$f":"IFERROR(INDEX(ChampQui,MATCH(0,COUNTIF($A$2:A21,ChampQui),0)),\"\")","v":""},""]
[{"$f":"IFERROR(INDEX(ChampQui,MATCH(0,COUNTIF($A$2:A22,ChampQui),0)),\"\")","v":""},""]
[{"$f":"IFERROR(INDEX(ChampQui,MATCH(0,COUNTIF($A$2:A23,ChampQui),0)),\"\")","v":""},""]
[{"$f":"IFERROR(INDEX(ChampQui,MATCH(0,COUNTIF($A$2:A24,ChampQui),0)),\"\")","v":""},""]
[{"$f":"IFERROR(INDEX(ChampQui,MATCH(0,COUNTIF($A$2:A25,ChampQui),0)),\"\")","v":""},""]
[{"$f":"IFERROR(INDEX(ChampQui,MATCH(0,COUNTIF($A$2:A26,ChampQui),0)),\"\")","v":""},""]
[{"$f":"IFERROR(INDEX(ChampQui,MATCH(0,COUNTIF($A$2:A27,ChampQui),0)),\"\")","v":""},""]
[{"$f":"IFERROR(INDEX(ChampQui,MATCH(0,COUNTIF($A$2:A28,ChampQui),0)),\"\")","v":""},""]
[{"$f":"IFERROR(INDEX(ChampQui,MATCH(0,COUNTIF($A$2:A29,ChampQui),0)),\"\")","v":""},""]
[{"$f":"IFERROR(INDEX(ChampQui,MATCH(0,COUNTIF($A$2:A30,ChampQui),0)),\"\")","v":""},""]
[{"$f":"IFERROR(INDEX(ChampQui,MATCH(0,COUNTIF($A$2:A31,ChampQui),0)),\"\")","v":""},""]
[{"$f":"IFERROR(INDEX(ChampQui,MATCH(0,COUNTIF($A$2:A32,ChampQui),0)),\"\")","v":""},""]
[{"$f":"IFERROR(INDEX(ChampQui,MATCH(0,COUNTIF($A$2:A33,ChampQui),0)),\"\")","v":""},""]
[{"$f":"IFERROR(INDEX(ChampQui,MATCH(0,COUNTIF($A$2:A34,ChampQui),0)),\"\")","v":""},""]
[{"$f":"IFERROR(INDEX(ChampQui,MATCH(0,COUNTIF($A$2:A35,ChampQui),0)),\"\")","v":""},""]
[{"$f":"IFERROR(INDEX(ChampQui,MATCH(0,COUNTIF($A$2:A36,ChampQui),0)),\"\")","v":""},""]
[{"$f":"IFERROR(INDEX(ChampQui,MATCH(0,COUNTIF($A$2:A37,ChampQui),0)),\"\")","v":""},""]
[{"$f":"IFERROR(INDEX(ChampQui,MATCH(0,COUNTIF($A$2:A38,ChampQui),0)),\"\")","v":""},""]
[{"$f":"IFERROR(INDEX(ChampQui,MATCH(0,COUNTIF($A$2:A39,ChampQui),0)),\"\")","v":""},""]
[{"$f":"IFERROR(INDEX(ChampQui,MATCH(0,COUNTIF($A$2:A40,ChampQui),0)),\"\")","v":""},""]
[{"$f":"IFERROR(INDEX(ChampQui,MATCH(0,COUNTIF($A$2:A41,ChampQui),0)),\"\")","v":""},""]
[{"$f":"IFERROR(INDEX(ChampQui,MATCH(0,COUNTIF($A$2:A42,ChampQui),0)),\"\")","v":""},""]
[{"$f":"IFERROR(INDEX(ChampQui,MATCH(0,COUNTIF($A$2:A43,ChampQui),0)),\"\")","v":""},""]
[{"$f":"IFERROR(INDEX(ChampQui,MATCH(0,COUNTIF($A$2:A44,ChampQui),0)),\"\")","v":""},""]
[{"$f":"IFERROR(INDEX(ChampQui,MATCH(0,COUNTIF($A$2:A45,ChampQui),0)),\"\")","v":""},""]
[{"$f":"IFERROR(INDEX(ChampQui,MATCH(0,COUNTIF($A$2:A46,ChampQui),0)),\"\")","v":""},""]
[{"$f":"IFERROR(INDEX(ChampQui,MATCH(0,COUNTIF($A$2:A47,ChampQui),0)),\"\")","v":""},""]
[{"$f":"IFERROR(INDEX(ChampQui,MATCH(0,COUNTIF($A$2:A48,ChampQui),0)),\"\")","v":""},""]
[{"$f":"IFERROR(INDEX(ChampQui,MATCH(0,COUNTIF($A$2:A49,ChampQui),0)),\"\")","v":""},""]
[{"$f":"IFERROR(INDEX(ChampQui,MATCH(0,COUNTIF($A$2:A50,ChampQui),0)),\"\")","v":""},""]
[{"$f":"IFERROR(INDEX(ChampQui,MATCH(0,COUNTIF($A$2:A51,ChampQui),0)),\"\")","v":""},""]
[{"$f":"IFERROR(INDEX(ChampQui,MATCH(0,COUNTIF($A$2:A52,ChampQui),0)),\"\")","v":""},""]
[{"$f":"IFERROR(INDEX(ChampQui,MATCH(0,COUNTIF($A$2:A53,ChampQui),0)),\"\")","v":""},""]
[{"$f":"IFERROR(INDEX(ChampQui,MATCH(0,COUNTIF($A$2:A54,ChampQui),0)),\"\")","v":""},""]
[{"$f":"IFERROR(INDEX(ChampQui,MATCH(0,COUNTIF($A$2:A55,ChampQui),0)),\"\")","v":""},""]
[{"$f":"IFERROR(INDEX(ChampQui,MATCH(0,COUNTIF($A$2:A56,ChampQui),0)),\"\")","v":""},""]
[{"$f":"IFERROR(INDEX(ChampQui,MATCH(0,COUNTIF($A$2:A57,ChampQui),0)),\"\")","v":""},""]
[{"$f":"IFERROR(INDEX(ChampQui,MATCH(0,COUNTIF($A$2:A58,ChampQui),0)),\"\")","v":""},""]
[{"$f":"IFERROR(INDEX(ChampQui,MATCH(0,COUNTIF($A$2:A59,ChampQui),0)),\"\")","v":""},""]
[{"$f":"IFERROR(INDEX(ChampQui,MATCH(0,COUNTIF($A$2:A60,ChampQui),0)),\"\")","v":""},""]
[{"$f":"IFERROR(INDEX(ChampQui,MATCH(0,COUNTIF($A$2:A61,ChampQui),0)),\"\")","v":""},""]
[{"$f":"IFERROR(INDEX(ChampQui,MATCH(0,COUNTIF($A$2:A62,ChampQui),0)),\"\")","v":""},""]
[{"$f":"IFERROR(INDEX(ChampQui,MATCH(0,COUNTIF($A$2:A63,ChampQui),0)),\"\")","v":""},""]
[{"$f":"IFERROR(INDEX(ChampQui,MATCH(0,COUNTIF($A$2:A64,ChampQui),0)),\"\")","v":""},""]
[{"$f":"IFERROR(INDEX(ChampQui,MATCH(0,COUNTIF($A$2:A65,ChampQui),0)),\"\")","v":""},""]
[{"$f":"IFERROR(INDEX(ChampQui,MATCH(0,COUNTIF($A$2:A66,ChampQui),0)),\"\")","v":""},""]
[{"$f":"IFERROR(INDEX(ChampQui,MATCH(0,COUNTIF($A$2:A67,ChampQui),0)),\"\")","v":""},{"$f":"IF(A68=\"\",\"\",ROW())","v":""}]
[{"$f":"IFERROR(INDEX(ChampQui,MATCH(0,COUNTIF($A$2:A68,ChampQui),0)),\"\")","v":""},""]
[{"$f":"IFERROR(INDEX(ChampQui,MATCH(0,COUNTIF($A$2:A69,ChampQui),0)),\"\")","v":""},""]
[{"$f":"IFERROR(INDEX(ChampQui,MATCH(0,COUNTIF($A$2:A70,ChampQui),0)),\"\")","v":""},""]
[{"$f":"IFERROR(INDEX(ChampQui,MATCH(0,COUNTIF($A$2:A71,ChampQui),0)),\"\")","v":""},""]
[{"$f":"IFERROR(INDEX(ChampQui,MATCH(0,COUNTIF($A$2:A72,ChampQui),0)),\"\")","v":""},""]
[{"$f":"IFERROR(INDEX(ChampQui,MATCH(0,COUNTIF($A$2:A73,ChampQui),0)),\"\")","v":""},""]
[{"$f":"IFERROR(INDEX(ChampQui,MATCH(0,COUNTIF($A$2:A74,ChampQui),0)),\"\")","v":""},""]
[{"$f":"IFERROR(INDEX(ChampQui,MATCH(0,COUNTIF($A$2:A75,ChampQui),0)),\"\")","v":""},""]
[{"$f":"IFERROR(INDEX(ChampQui,MATCH(0,COUNTIF($A$2:A76,ChampQui),0)),\"\")","v":""},""]
[{"$f":"IFERROR(INDEX(ChampQui,MATCH(0,COUNTIF($A$2:A77,ChampQui),0)),\"\")","v":""},""]
[{"$f":"IFERROR(INDEX(ChampQui,MATCH(0,COUNTIF($A$2:A78,ChampQui),0)),\"\")","v":""},""]
[{"$f":"IFERROR(INDEX(ChampQui,MATCH(0,COUNTIF($A$2:A79,ChampQui),0)),\"\")","v":""},""]
[{"$f":"IFERROR(INDEX(ChampQui,MATCH(0,COUNTIF($A$2:A80,ChampQui),0)),\"\")","v":""},""]
[{"$f":"IFERROR(INDEX(ChampQui,MATCH(0,COUNTIF($A$2:A81,ChampQui),0)),\"\")","v":""},""]
[{"$f":"IFERROR(INDEX(ChampQui,MATCH(0,COUNTIF($A$2:A82,ChampQui),0)),\"\")","v":""},""]
[{"$f":"IFERROR(INDEX(ChampQui,MATCH(0,COUNTIF($A$2:A83,ChampQui),0)),\"\")","v":""},""]
[{"$f":"IFERROR(INDEX(ChampQui,MATCH(0,COUNTIF($A$2:A84,ChampQui),0)),\"\")","v":""},""]
[{"$f":"IFERROR(INDEX(ChampQui,MATCH(0,COUNTIF($A$2:A85,ChampQui),0)),\"\")","v":""},""]
[{"$f":"IFERROR(INDEX(ChampQui,MATCH(0,COUNTIF($A$2:A86,ChampQui),0)),\"\")","v":""},""]
[{"$f":"IFERROR(INDEX(ChampQui,MATCH(0,COUNTIF($A$2:A87,ChampQui),0)),\"\")","v":""},""]
[{"$f":"IFERROR(INDEX(ChampQui,MATCH(0,COUNTIF($A$2:A88,ChampQui),0)),\"\")","v":""},""]
[{"$f":"IFERROR(INDEX(ChampQui,MATCH(0,COUNTIF($A$2:A89,ChampQui),0)),\"\")","v":""},""]
[{"$f":"IFERROR(INDEX(ChampQui,MATCH(0,COUNTIF($A$2:A90,ChampQui),0)),\"\")","v":""},""]
[{"$f":"IFERROR(INDEX(ChampQui,MATCH(0,COUNTIF($A$2:A91,ChampQui),0)),\"\")","v":""},""]
[{"$f":"IFERROR(INDEX(ChampQui,MATCH(0,COUNTIF($A$2:A92,ChampQui),0)),\"\")","v":""},""]
[{"$f":"IFERROR(INDEX(ChampQui,MATCH(0,COUNTIF($A$2:A93,ChampQui),0)),\"\")","v":""},""]
[{"$f":"IFERROR(INDEX(ChampQui,MATCH(0,COUNTIF($A$2:A94,ChampQui),0)),\"\")","v":""},""]
[{"$f":"IFERROR(INDEX(ChampQui,MATCH(0,COUNTIF($A$2:A95,ChampQui),0)),\"\")","v":""},""]
[{"$f":"IFERROR(INDEX(ChampQui,MATCH(0,COUNTIF($A$2:A96,ChampQui),0)),\"\")","v":""},""]
[{"$f":"IFERROR(INDEX(ChampQui,MATCH(0,COUNTIF($A$2:A97,ChampQui),0)),\"\")","v":""},""]
[{"$f":"IFERROR(INDEX(ChampQui,MATCH(0,COUNTIF($A$2:A98,ChampQui),0)),\"\")","v":""},""]
[{"$f":"IFERROR(INDEX(ChampQui,MATCH(0,COUNTIF($A$2:A99,ChampQui),0)),\"\")","v":""},""]
[{"$f":"IFERROR(INDEX(ChampQui,MATCH(0,COUNTIF($A$2:A100,ChampQui),0)),\"\")","v":""},""]
[{"$f":"IFERROR(INDEX(ChampQui,MATCH(0,COUNTIF($A$2:A101,ChampQui),0)),\"\")","v":""},""]
[{"$f":"IFERROR(INDEX(ChampQui,MATCH(0,COUNTIF($A$2:A102,ChampQui),0)),\"\")","v":""},""]
[{"$f":"IFERROR(INDEX(ChampQui,MATCH(0,COUNTIF($A$2:A103,ChampQui),0)),\"\")","v":""},""]
[{"$f":"IFERROR(INDEX(ChampQui,MATCH(0,COUNTIF($A$2:A104,ChampQui),0)),\"\")","v":""},""]
[{"$f":"IFERROR(INDEX(ChampQui,MATCH(0,COUNTIF($A$2:A105,ChampQui),0)),\"\")","v":""},""]
[{"$f":"IFERROR(INDEX(ChampQui,MATCH(0,COUNTIF($A$2:A106,ChampQui),0)),\"\")","v":""},""]
[{"$f":"IFERROR(INDEX(ChampQui,MATCH(0,COUNTIF($A$2:A107,ChampQui),0)),\"\")","v":""},""]
[{"$f":"IFERROR(INDEX(ChampQui,MATCH(0,COUNTIF($A$2:A108,ChampQui),0)),\"\")","v":""},""]
[{"$f":"IFERROR(INDEX(ChampQui,MATCH(0,COUNTIF($A$2:A109,ChampQui),0)),\"\")","v":""},""]
[{"$f":"IFERROR(INDEX(ChampQui,MATCH(0,COUNTIF($A$2:A110,ChampQui),0)),\"\")","v":""},""]
[{"$f":"IFERROR(INDEX(ChampQui,MATCH(0,COUNTIF($A$2:A111,ChampQui),0)),\"\")","v":""},""]
[{"$f":"IFERROR(INDEX(ChampQui,MATCH(0,COUNTIF($A$2:A112,ChampQui),0)),\"\")","v":""},""]
[{"$f":"IFERROR(INDEX(ChampQui,MATCH(0,COUNTIF($A$2:A113,ChampQui),0)),\"\")","v":""},""]
[{"$f":"IFERROR(INDEX(ChampQui,MATCH(0,COUNTIF($A$2:A114,ChampQui),0)),\"\")","v":""},""]
[{"$f":"IFERROR(INDEX(ChampQui,MATCH(0,COUNTIF($A$2:A115,ChampQui),0)),\"\")","v":""},""]
[{"$f":"IFERROR(INDEX(ChampQui,MATCH(0,COUNTIF($A$2:A116,ChampQui),0)),\"\")","v":""},""]
[{"$f":"IFERROR(INDEX(ChampQui,MATCH(0,COUNTIF($A$2:A117,ChampQui),0)),\"\")","v":""},""]
[{"$f":"IFERROR(INDEX(ChampQui,MATCH(0,COUNTIF($A$2:A118,ChampQui),0)),\"\")","v":""},""]
[{"$f":"IFERROR(INDEX(ChampQui,MATCH(0,COUNTIF($A$2:A119,ChampQui),0)),\"\")","v":""},""]
[{"$f":"IFERROR(INDEX(ChampQui,MATCH(0,COUNTIF($A$2:A120,ChampQui),0)),\"\")","v":""},""]
[{"$f":"IFERROR(INDEX(ChampQui,MATCH(0,COUNTIF($A$2:A121,ChampQui),0)),\"\")","v":""},""]
[{"$f":"IFERROR(INDEX(ChampQui,MATCH(0,COUNTIF($A$2:A122,ChampQui),0)),\"\")","v":""},""]
[{"$f":"IFERROR(INDEX(ChampQui,MATCH(0,COUNTIF($A$2:A123,ChampQui),0)),\"\")","v":""},""]
[{"$f":"IFERROR(INDEX(ChampQui,MATCH(0,COUNTIF($A$2:A124,ChampQui),0)),\"\")","v":""},""]
[{"$f":"IFERROR(INDEX(ChampQui,MATCH(0,COUNTIF($A$2:A125,ChampQui),0)),\"\")","v":""},""]
[{"$f":"IFERROR(INDEX(ChampQui,MATCH(0,COUNTIF($A$2:A126,ChampQui),0)),\"\")","v":""},""]
[{"$f":"IFERROR(INDEX(ChampQui,MATCH(0,COUNTIF($A$2:A127,ChampQui),0)),\"\")","v":""},""]
[{"$f":"IFERROR(INDEX(ChampQui,MATCH(0,COUNTIF($A$2:A128,ChampQui),0)),\"\")","v":""},""]
[{"$f":"IFERROR(INDEX(ChampQui,MATCH(0,COUNTIF($A$2:A129,ChampQui),0)),\"\")","v":""},""]
[{"$f":"IFERROR(INDEX(ChampQui,MATCH(0,COUNTIF($A$2:A130,ChampQui),0)),\"\")","v":""},""]
[{"$f":"IFERROR(INDEX(ChampQui,MATCH(0,COUNTIF($A$2:A131,ChampQui),0)),\"\")","v":""},{"$f":"IF(A132=\"\",\"\",ROW())","v":""}]